bitfinex-derivatives/quotes_ETHF0:USTF0_20260204
["timestamp","ask_amount","ask_price","bid_price","bid_amount"]
[1770167122716,0.00322706,2263.9,2263.0,2.48239193]
[1770167123314,2.33053287,2265.2,2263.8,2.58080161]
[1770167123517,2.33053287,2265.2,2263.9,2.48239193]
[1770167124120,2.55155287,2265.5,2263.9,2.48239193]
[1770167124322,2.33053287,2265.8,2264.6,2.48239193]
[1770167124527,0.22098,2266.0,2264.6,2.48239193]
[1770167124729,2.33053287,2265.8,2264.6,2.48239193]
[1770167124924,2.33053287,2265.5,2264.3,2.48239193]
[1770167125133,2.55159287,2265.1,2264.0,2.48239193]
[1770167125330,0.22576152,2265.1,2264.0,2.48239193]
[1770167126222,0.00470152,2265.1,2264.0,2.48239193]
[1770167127338,2.33523439,2265.1,2264.0,2.48239193]
[1770167128735,2.33523439,2265.1,2263.0,8.61756966]
[1770167128736,0.22112,2264.5,2263.6,2.48239193]
[1770167128936,2.33053287,2264.5,2263.6,2.48239193]
[1770167129936,2.33053287,2264.5,2263.6,0.00332796]
[1770167130137,2.33053287,2264.5,2263.6,2.48571989]
[1770167130730,0.2211,2264.7,2263.6,2.48571989]
[1770167130931,2.33523439,2265.1,2263.6,2.48571989]
[1770167131738,0.00470152,2265.1,2263.6,2.48571989]
[1770167132539,0.00470152,2265.1,2263.8,2.48239193]
[1770167133038,0.00470152,2265.1,2263.8,5.04399338]
[1770167133340,2.55152287,2265.8,2264.1,2.48239193]
[1770167133937,0.22099,2265.8,2264.1,2.48239193]
[1770167134137,2.55697227,2265.8,2264.2,2.48239193]
[1770167134638,2.33053287,2265.6,2264.2,2.48239193]
[1770167136040,0.221,2265.7,2264.2,2.48239193]
[1770167136342,0.0054494,2265.8,2264.2,2.48239193]
[1770167136542,0.0054494,2265.8,2264.2,5.04399338]
[1770167136737,0.0054494,2265.8,2264.4,2.48239193]
[1770167138840,2.33053287,2265.7,2264.4,2.48239193]
[1770167139343,0.0054494,2265.8,2264.4,2.48239193]
[1770167139541,0.0054494,2265.8,2264.4,5.04399338]
[1770167139842,0.0054494,2265.8,2264.5,2.48239193]
[1770167140439,12.61853287,2266.5,2265.0,2.48239193]
[1770167140646,2.55147287,2266.3,2265.0,2.48239193]
[1770167140835,2.55150287,2266.0,2265.0,2.48239193]
[1770167141038,2.33053287,2265.9,2264.6,2.48239193]
[1770167141238,2.33053287,2265.6,2264.6,2.48239193]
[1770167141437,2.33498377,2265.6,2264.6,2.48239193]
[1770167141643,0.0044509,2265.6,2264.6,2.48239193]
[1770167142346,2.33498377,2265.6,2264.6,2.48239193]
[1770167142546,0.0044509,2265.6,2264.6,2.48239193]
[1770167143045,2.33498377,2265.6,2264.1,2.56160145]
[1770167143244,2.33498377,2265.6,2264.2,2.48239193]
[1770167143445,2.55599377,2265.6,2264.2,2.48239193]
[1770167143640,0.2254609,2265.6,2264.2,2.48239193]
[1770167143841,2.55599377,2265.6,2264.2,2.48239193]
[1770167144642,0.0044509,2265.6,2264.2,2.48239193]
[1770167144850,0.0044509,2265.6,2264.4,5.04399338]
[1770167145049,0.0044509,2265.6,2264.5,2.48239193]
[1770167145845,0.0044509,2265.6,2264.6,2.48239193]
[1770167150351,2.33498377,2265.6,2264.6,2.48239193]
[1770167151147,0.0044509,2265.6,2264.6,2.48239193]
[1770167152449,0.0044509,2265.6,2264.7,2.29007915]
[1770167153656,0.0044509,2265.6,2264.7,4.8516806]
[1770167153857,0.0044509,2265.6,2264.8,2.29007915]
[1770167156653,2.31188952,2265.6,2264.5,4.99014606]
[1770167156853,2.30743862,2265.3,2264.2,4.99014606]
[1770167157156,2.30743862,2265.3,2263.9,4.99014606]
[1770167157353,2.30743862,2265.0,2263.9,2.42854461]
[1770167157850,2.30743862,2265.3,2263.9,2.42854461]
[1770167158050,2.30743862,2265.4,2264.1,2.42854461]
[1770167158460,2.30743862,2265.4,2264.2,2.42854461]
[1770167158757,0.22103,2265.4,2264.2,2.42854461]
[1770167158963,2.30743862,2265.4,2264.2,2.42854461]
[1770167159158,2.30743862,2265.1,2264.0,2.42854461]
[1770167159661,2.52849862,2265.1,2264.0,2.42854461]
[1770167160158,2.30743862,2264.9,2263.7,2.58958602]
[1770167160358,2.30743862,2264.9,2263.8,2.42854461]
[1770167160553,2.30743862,2264.6,2263.6,0.00332796]
[1770167160754,2.30743862,2264.9,2263.6,2.43187257]
[1770167160955,3.17843862,2265.0,2263.8,2.42854461]
[1770167161461,3.39950862,2265.0,2263.8,2.42854461]
[1770167161655,2.30743862,2264.9,2263.8,2.42854461]
[1770167162454,2.52851862,2264.9,2263.8,2.42854461]
[1770167163656,2.52855862,2264.5,2263.6,0.00332796]
[1770167163862,2.30743862,2264.9,2263.6,2.43187257]
[1770167164657,0.22107,2265.0,2263.6,2.43187257]
[1770167164858,2.52850862,2265.0,2263.6,2.43187257]
[1770167165659,2.30743862,2264.6,2263.6,0.00332796]
[1770167166459,2.30743862,2264.6,2263.0,2.42854461]
[1770167166661,2.30743862,2264.1,2263.0,2.42854461]
[1770167166965,2.52858862,2264.1,2263.0,2.42854461]
[1770167167563,2.52858862,2264.1,2263.0,2.43234039]
[1770167167956,2.30743862,2264.4,2263.0,2.43234039]
[1770167168158,2.52858862,2264.2,2263.0,2.43234039]
[1770167168559,2.52860862,2264.0,2263.0,0.00379578]
[1770167168763,2.53233371,2264.0,2263.0,0.00379578]
[1770167168959,0.22121,2263.6,2262.4,2.42854461]
[1770167169164,2.52864862,2263.5,2262.4,2.42854461]
[1770167169756,2.52866862,2263.3,2262.4,2.42854461]
[1770167169955,2.52866862,2263.3,2262.4,2.43217035]
[1770167170166,2.52866862,2263.3,2262.4,0.00362574]
[1770167170766,2.30743862,2263.1,2261.9,2.42854461]
[1770167170962,2.30743862,2262.9,2261.4,2.42854461]
[1770167171162,2.52870862,2262.9,2261.4,2.42854461]
[1770167171367,2.30743862,2262.7,2261.4,2.42854461]
[1770167171967,2.30743862,2262.7,2261.4,2.43258302]
[1770167172860,0.22129,2262.8,2261.4,2.43258302]
[1770167173060,2.52872862,2262.8,2261.4,2.43258302]
[1770167173465,2.30743862,2262.6,2261.4,2.43258302]
[1770167175069,0.22129,2262.7,2261.4,2.43258302]
[1770167175369,2.52872862,2262.7,2261.4,2.43258302]
[1770167175768,0.22129,2262.7,2261.4,2.43258302]
[1770167176162,2.30743862,2263.0,2261.4,2.43258302]
[1770167176565,2.30743862,2262.6,2261.4,2.43258302]
[1770167177669,2.30743862,2262.4,2261.4,0.00403841]
[1770167177871,2.31303112,2262.4,2261.4,2.43258302]
[1770167178070,0.0055925,2262.4,2261.4,2.43258302]
[1770167178776,2.31303112,2262.4,2261.4,2.43258302]
[1770167180876,2.30941693,2262.2,2261.4,0.00403841]
[1770167181068,0.0055925,2262.4,2261.4,2.4315021]
[1770167181674,2.31500943,2262.4,2261.4,2.4315021]
[1770167182073,0.0055925,2262.4,2261.4,2.4315021]
[1770167182470,2.31500943,2262.4,2261.4,2.4315021]
[1770167182665,2.53632943,2262.4,2261.4,2.4315021]
[1770167182871,2.30941693,2262.2,2261.4,0.00403841]
[1770167183168,2.53078693,2261.9,2261.0,2.42746369]
[1770167183367,2.53079693,2261.8,2260.0,1.15264171]
[1770167183575,2.30941693,2261.6,2260.1,2.42746369]
[1770167184073,2.53083693,2261.5,2260.1,2.42746369]
[1770167184275,2.30941693,2261.3,2260.1,2.43127109]
[1770167184676,2.30941693,2261.6,2260.1,2.43127109]
[1770167185077,2.53081693,2261.6,2260.1,2.43127109]
[1770167185274,2.30941693,2261.3,2260.1,2.43127109]
[1770167185468,2.30941693,2261.3,2260.1,0.0038074]
[1770167185875,2.30941693,2261.4,2259.8,2.42746369]
[1770167186678,2.30941693,2260.8,2259.8,2.42746369]
[1770167186877,2.31504355,2260.8,2259.8,2.43221191]
[1770167187074,2.30941693,2260.5,2259.8,0.00474822]
[1770167187373,2.30941693,2260.4,2259.0,2.42746369]
[1770167187576,0.00562662,2260.8,2259.0,2.42746369]
[1770167187577,2.30941693,2260.7,2259.0,2.42746369]
[1770167187776,2.53090693,2260.7,2259.0,2.42746369]
[1770167188379,2.53090693,2260.7,2259.0,2.4308947]
[1770167188974,2.53092693,2260.5,2259.0,2.4308947]
[1770167189276,2.30941693,2260.7,2259.0,2.4308947]
[1770167191169,0.00562662,2260.8,2259.0,2.4308947]
[1770167191772,2.31504355,2260.8,2259.0,2.4308947]
[1770167191979,0.00562662,2260.8,2259.2,2.42746369]
[1770167192176,0.00562662,2260.8,2259.4,2.42746369]
[1770167195979,2.31504355,2260.8,2259.4,2.42746369]
[1770167196174,0.00562662,2260.8,2259.4,2.42746369]
[1770167196376,0.00562662,2260.8,2259.7,2.42746369]
[1770167197281,2.30941693,2261.5,2260.1,2.42746369]
[1770167198075,2.30941693,2260.9,2260.1,2.42746369]
[1770167198278,0.00463582,2261.5,2260.1,2.42746369]
[1770167198579,2.30941693,2261.4,2260.1,2.42746369]
[1770167200979,2.30941693,2261.1,2260.1,2.42746369]
[1770167201980,2.30941693,2261.0,2259.7,2.42746369]
[1770167202281,0.865,2261.1,2259.7,2.42746369]
[1770167202478,2.30941693,2261.3,2259.9,2.42746369]
[1770167202782,2.30941693,2261.3,2259.9,2.64902369]
[1770167203181,2.30941693,2261.3,2259.9,2.42746369]
[1770167203981,2.30941693,2261.1,2259.6,5.01704971]
[1770167204186,2.53084693,2261.3,2259.7,2.42746369]
[1770167204687,2.53084693,2261.3,2259.8,2.42746369]
[1770167204889,0.22143,2261.3,2259.8,2.42746369]
[1770167205086,2.31405275,2261.5,2259.8,2.64903369]
[1770167205388,2.31405275,2261.5,2259.9,2.42746369]
[1770167205792,2.53546275,2261.5,2259.9,2.42746369]
[1770167207191,2.53546275,2261.5,2260.0,2.42746369]
[1770167207392,2.30941693,2260.8,2259.7,5.01704971]
[1770167207592,2.30941693,2261.1,2259.7,2.42746369]
[1770167209494,0.22144,2261.2,2260.0,2.42746369]
[1770167209791,2.53085693,2261.2,2260.0,2.42746369]
[1770167210294,2.53085693,2261.2,2260.1,2.42746369]
[1770167210494,0.22144,2261.2,2260.1,2.42746369]
[1770167210694,2.5223227,2261.2,2260.1,2.42746369]
[1770167211095,2.3008827,2261.1,2260.1,2.42746369]
[1770167211698,2.3008827,2261.4,2260.1,2.42746369]
[1770167212198,2.3008827,2261.4,2260.2,2.51277378]
[1770167212898,2.3008827,2261.4,2260.3,2.51277378]
[1770167213090,2.3008827,2261.4,2260.3,7.28782615]
[1770167213698,2.3008827,2261.4,2260.3,4.77505237]
[1770167213893,2.3008827,2261.4,2260.3,7.36463839]
[1770167214099,2.3008827,2261.4,2260.4,2.51277378]
[1770167215796,2.5223027,2261.4,2260.2,7.33762243]
[1770167216298,2.5223027,2261.4,2260.2,9.84738513]
[1770167216497,2.5223027,2261.4,2260.3,2.5097627]
[1770167220602,2.44501097,2262.3,2261.1,2.5097627]
[1770167220800,2.44501097,2262.3,2261.0,7.28431025]
[1770167220999,2.66643097,2261.4,2260.3,2.5097627]
[1770167221596,0.22612554,2261.4,2260.3,2.51361006]
[1770167222196,0.00470554,2261.4,2260.3,2.51361006]
[1770167222401,0.00470554,2261.4,2260.5,2.5097627]
[1770167222599,2.44971651,2261.4,2260.5,2.5097627]
[1770167223498,2.44971651,2261.4,2260.3,0.00384736]
[1770167223702,2.44501097,2261.0,2260.3,0.00384736]
[1770167224004,0.00470554,2261.4,2260.3,2.51361006]
[1770167224598,2.44971651,2261.4,2260.3,2.51361006]
[1770167225106,2.44501097,2261.2,2260.3,0.00384736]
[1770167225300,2.66646097,2261.1,2260.3,0.00384736]
[1770167225701,0.22145,2261.1,2260.3,2.51361006]
[1770167226301,2.44971651,2261.4,2260.3,2.51361006]
[1770167227604,2.44501097,2261.2,2260.3,2.51361006]
[1770167227804,2.66645097,2261.2,2260.3,2.51361006]
[1770167228000,0.00470554,2261.4,2260.3,2.51361006]
[1770167229308,0.00470554,2261.4,2260.4,2.5097627]
[1770167230205,1.019,2261.9,2260.7,2.5097627]
[1770167230607,3.46401097,2261.9,2260.7,2.5097627]
[1770167230908,2.44501097,2261.8,2260.7,2.5097627]
[1770167231101,2.66641097,2261.7,2260.7,2.5097627]
[1770167231301,2.66967184,2261.7,2260.7,2.5097627]
[1770167232305,0.22466087,2261.7,2260.7,2.5097627]
[1770167232508,2.66967184,2261.7,2260.7,2.5097627]
[1770167232702,2.44501097,2261.6,2260.7,2.5097627]
[1770167233308,2.44501097,2261.6,2260.3,0.00384736]
[1770167233509,9.07526997,2261.5,2260.4,2.5097627]
[1770167233709,2.66645097,2261.3,2260.4,2.5097627]
[1770167233911,9.29670997,2261.3,2260.4,2.5097627]
[1770167234103,2.66645097,2261.2,2260.3,0.00384736]
[1770167234309,2.44501097,2261.1,2260.3,0.00384736]
[1770167234509,6.851699,2261.2,2260.3,2.51361006]
[1770167234709,2.44501097,2261.1,2260.3,0.00384736]
[1770167234910,2.44501097,2261.1,2260.0,2.5097627]
[1770167234911,9.07526997,2261.1,2260.0,2.5097627]
[1770167235505,0.22146,2261.0,2260.0,2.5097627]
[1770167235807,2.66648097,2260.9,2260.0,0.00362109]
[1770167236010,9.29673997,2260.9,2260.0,0.00362109]
[1770167236210,2.44501097,2260.8,2260.0,0.00362109]
[1770167236409,0.22147,2260.9,2260.0,2.51338379]
[1770167237513,2.66648097,2260.9,2260.0,0.00362109]
[1770167238213,2.44501097,2260.8,2260.0,0.00362109]
[1770167239916,6.851729,2260.9,2260.0,2.51338379]
[1770167240916,2.34703691,2260.8,2260.0,0.00362109]
[1770167241210,2.56856691,2260.3,2259.2,2.17143324]
[1770167241412,3.68803691,2260.2,2259.2,2.17143324]
[1770167241613,2.34703691,2260.1,2259.2,2.17143324]
[1770167242021,2.34703691,2259.9,2258.9,2.3933978]
[1770167242315,2.34703691,2259.4,2257.8,2.17143324]
[1770167242512,3.48003691,2259.3,2257.8,2.17143324]
[1770167242913,8.97729591,2259.2,2257.8,2.17143324]
[1770167243118,1.35463,2259.3,2257.8,2.17143324]
[1770167243319,0.22163,2259.3,2257.8,2.17492468]
[1770167243619,0.865,2259.2,2257.8,2.17492468]
[1770167245518,3.21203691,2259.2,2257.8,2.17492468]
[1770167246214,2.34703691,2259.1,2257.8,2.17492468]
[1770167247322,0.865,2259.2,2257.8,2.17492468]
[1770167248023,3.21203691,2259.2,2257.8,2.17492468]
[1770167248323,2.34703691,2259.1,2257.8,2.17492468]
[1770167249527,1.08663,2259.2,2257.8,2.17492468]
[1770167249528,2.34703691,2258.9,2257.8,2.17492468]
[1770167249827,0.22166,2259.0,2257.8,2.17492468]
[1770167250118,2.56869691,2259.0,2257.8,2.17492468]
[1770167250726,0.22166,2259.0,2257.8,2.17492468]
[1770167251324,0.865,2259.2,2257.8,2.17492468]
[1770167252229,2.56864691,2259.5,2257.8,2.17492468]
[1770167253630,0.866,2259.7,2258.0,2.17143324]
[1770167253832,0.866,2259.7,2258.2,2.17143324]
[1770167256136,0.00440233,2260.1,2258.5,2.17143324]
[1770167256137,2.57298924,2260.1,2258.5,2.17143324]
[1770167259238,0.00440233,2260.1,2259.0,2.17143324]
[1770167259733,0.00440233,2260.1,2259.0,2.39308324]
[1770167259933,0.00440233,2260.1,2259.0,2.17143324]
[1770167260134,2.56860691,2259.9,2259.0,2.17143324]
[1770167260430,0.00440233,2260.1,2258.7,2.17143324]
[1770167261036,2.35143924,2260.1,2258.7,2.17143324]
[1770167261637,0.00440233,2260.1,2258.7,2.39311324]
[1770167262138,2.35143924,2260.1,2258.7,2.17143324]
[1770167262340,2.57298924,2260.1,2258.7,2.17143324]
[1770167262839,2.56859691,2260.0,2258.7,2.17143324]
[1770167263230,2.34703691,2260.0,2258.4,2.17143324]
[1770167263431,2.34703691,2259.4,2258.4,2.17143324]
[1770167263636,3.21303691,2259.3,2258.4,2.17143324]
[1770167264636,2.56867691,2259.2,2258.1,2.17143324]
[1770167264836,2.56869691,2259.0,2257.8,2.17492468]
[1770167268550,2.34703691,2259.3,2257.8,2.17492468]
[1770167268739,1.094,2259.2,2257.8,2.17492468]
[1770167278054,2.17274538,2259.5,2257.8,2.17492468]
[1770167278256,0.22161,2259.5,2257.9,1.97173112]
[1770167278455,0.22161,2259.5,2258.1,1.97173112]
[1770167280149,6.851819,2260.0,2258.4,0.22171]
[1770167280451,0.00440233,2260.1,2258.7,1.97173112]
[1770167281356,2.02169016,2260.1,2258.7,1.97173112]
[1770167281558,2.23883783,2260.0,2258.7,1.97173112]
[1770167282458,0.00440233,2260.1,2258.7,1.97173112]
[1770167282853,0.00440233,2260.1,2258.9,2.19339112]
[1770167283051,0.866,2260.8,2259.2,1.97173112]
[1770167283655,0.22146,2261.0,2259.4,2.19334112]
[1770167283858,0.22146,2261.0,2259.5,1.97173112]
[1770167284058,2.24338158,2261.0,2259.5,1.97727814]
[1770167284557,2.01728783,2260.8,2259.5,1.97727814]
[1770167285453,0.00463375,2261.0,2259.5,1.97727814]
[1770167285758,0.00463375,2261.0,2259.5,2.19887814]
[1770167286962,2.88328783,2261.7,2260.1,1.97173112]
[1770167287158,2.01728783,2261.7,2260.1,1.97173112]
[1770167287956,2.01728783,2261.5,2260.1,1.97173112]
[1770167288159,2.23869783,2261.5,2260.1,1.97173112]
[1770167289566,2.01728783,2261.3,2260.1,1.97173112]
[1770167290667,0.22142,2261.4,2260.1,1.97173112]
[1770167290869,0.00400918,2261.7,2260.1,1.97173112]
[1770167291268,2.24268701,2261.7,2260.1,1.97173112]
[1770167291467,2.01728783,2261.5,2260.1,1.97173112]
[1770167291871,0.2214,2261.6,2260.1,1.97173112]
[1770167292368,2.02129701,2261.7,2260.1,1.97173112]
[1770167292570,2.24268701,2261.7,2260.1,1.97173112]
[1770167294671,2.01728783,2261.6,2260.1,1.97173112]
[1770167295870,3.10768701,2261.7,2260.1,1.97173112]
[1770167296070,2.01728783,2261.6,2260.1,1.97173112]
[1770167296769,1.09039918,2261.7,2260.1,1.97173112]
[1770167296966,0.00400918,2261.7,2260.3,2.19325112]
[1770167297470,0.00400918,2261.7,2260.1,0.865]
[1770167297471,0.00400918,2261.7,2260.7,1.97173112]
[1770167298672,2.18317472,2262.5,2260.9,2.19319112]
[1770167299567,2.18317472,2262.5,2261.1,1.97173112]
[1770167299568,0.00310985,2262.5,2261.1,1.97173112]
[1770167299772,0.00310985,2262.5,2261.3,1.97173112]
[1770167300072,1.95622098,2262.5,2261.3,1.97173112]
[1770167301569,2.03960583,2262.4,2261.3,1.97173112]
[1770167301967,0.00310985,2262.5,2261.3,1.97173112]
[1770167303270,1.82139568,2262.5,2261.3,1.97173112]
[1770167303774,0.00310985,2262.5,2261.3,1.97173112]
[1770167304578,1.82139568,2262.5,2261.3,1.97173112]
[1770167305576,0.00310985,2262.5,2261.3,1.97173112]
[1770167306271,1.82139568,2262.5,2261.3,1.97173112]
[1770167306778,0.00310985,2262.5,2261.3,1.97173112]
[1770167307581,1.81828583,2263.4,2261.6,2.03803626]
[1770167307978,1.81828583,2263.4,2261.9,1.81663626]
[1770167308181,1.81828583,2263.1,2261.9,1.81663626]
[1770167308380,2.03953583,2263.1,2261.9,1.81663626]
[1770167308779,2.04421439,2263.1,2261.9,1.81663626]
[1770167310677,1.81828583,2262.7,2261.3,1.81663626]
[1770167310876,2.03959583,2262.6,2261.3,1.81663626]
[1770167311080,2.03960583,2262.4,2261.3,1.81663626]
[1770167311775,1.81828583,2262.4,2261.3,1.81663626]
[1770167313585,1.81828583,2262.7,2261.3,1.81663626]
[1770167314778,0.22128,2262.8,2261.3,1.81663626]
[1770167314975,2.03956583,2262.8,2261.3,1.81663626]
[1770167315580,0.22128,2262.8,2261.3,1.81663626]
[1770167315783,1.82296439,2263.1,2261.3,1.81663626]
[1770167315980,2.68796439,2263.1,2261.5,1.81663626]
[1770167316283,1.81056017,2263.0,2261.5,1.81663626]
[1770167316882,1.81056017,2263.0,2261.5,2.03804626]
[1770167317083,0.00467856,2263.1,2261.6,1.81663626]
[1770167319390,0.00467856,2263.1,2261.7,1.81663626]
[1770167319984,1.77654931,2263.1,2261.7,1.81663626]
[1770167320390,1.99779931,2263.1,2261.7,1.81663626]
[1770167322590,0.00467856,2263.1,2261.8,1.81663626]
[1770167322794,0.00467856,2263.1,2262.0,1.81663626]
[1770167322995,0.00467856,2263.1,2262.2,1.6860617]
[1770167323291,1.75952604,2263.7,2262.4,1.76714196]
[1770167323488,1.7283746,2264.0,2262.4,1.76714196]
[1770167323691,1.9495346,2264.0,2262.4,1.76714196]
[1770167324192,1.95299321,2264.0,2262.4,1.76714196]
[1770167324690,1.95299321,2264.0,2262.5,1.76714196]
[1770167325194,0.00345861,2264.0,2262.6,4.58838759]
[1770167325391,0.00345861,2264.0,2262.8,1.76714196]
[1770167325590,0.00345861,2264.0,2262.8,1.77121683]
[1770167331803,1.86800877,2265.1,2263.5,1.77806799]
[1770167332003,0.864,2265.4,2263.5,1.99927799]
[1770167332197,0.864,2265.4,2263.4,2.59994563]
[1770167332198,2.51094877,2265.4,2263.8,1.77806799]
[1770167332891,2.51532118,2265.4,2263.8,1.77806799]
[1770167333093,0.00437241,2265.4,2263.8,5.24201362]
[1770167333294,0.00437241,2265.4,2263.9,1.77806799]
[1770167334599,0.00437241,2265.4,2263.9,1.99923799]
[1770167335899,1.64357395,2265.4,2263.9,1.77806799]
[1770167336105,1.86460395,2265.4,2263.9,1.77806799]
[1770167336506,0.00437241,2265.4,2263.9,1.77806799]
[1770167337308,0.00437241,2265.4,2263.9,1.99923799]
[1770167338208,1.64199442,2265.4,2263.9,1.99923799]
[1770167338405,0.00437241,2265.4,2263.9,1.99923799]
[1770167340500,1.64055415,2265.4,2263.9,1.77806799]
[1770167340708,1.63618174,2264.8,2263.6,1.6477352]
[1770167341106,0.864,2264.9,2263.6,1.6477352]
[1770167341901,2.49506786,2264.9,2263.6,1.6477352]
[1770167342104,1.60830585,2264.8,2263.6,1.6477352]
[1770167343003,0.864,2264.9,2263.6,1.6477352]
[1770167343504,2.46733136,2264.9,2263.6,1.6477352]
[1770167344104,1.58962438,2264.8,2263.6,1.6477352]
[1770167345004,0.864,2264.9,2263.3,1.6477352]
[1770167345005,1.81073438,2264.6,2263.3,1.6477352]
[1770167345200,1.80588888,2264.5,2263.3,1.6477352]
[1770167345909,1.80591888,2264.3,2263.3,1.6477352]
[1770167346108,1.80591888,2264.3,2262.9,1.6477352]
[1770167346409,1.56288793,2264.1,2262.9,1.6477352]
[1770167347003,0.22116,2264.1,2262.9,1.6477352]
[1770167347706,1.77931447,2264.4,2262.9,1.6477352]
[1770167347909,1.77932447,2264.2,2262.9,1.6477352]
[1770167349706,1.54801271,2264.0,2262.9,1.6477352]
[1770167350710,1.53176426,2263.6,2262.8,0.00407487]
[1770167351011,1.75298426,2263.4,2262.2,1.6477352]
[1770167351710,1.52729832,2263.2,2262.2,1.6477352]
[1770167351912,1.52729832,2263.2,2262.2,1.65219317]
[1770167352105,0.22124,2263.3,2262.2,1.65219317]
[1770167352307,1.74443091,2263.3,2262.2,1.65219317]
[1770167353610,1.51882353,2262.9,2262.2,0.00445797]
[1770167354010,0.22126,2263.0,2262.2,0.00445797]
[1770167354507,1.73454978,2263.0,2262.2,0.00445797]
[1770167355212,0.22126,2263.0,2262.2,1.65219317]
[1770167357309,1.74413829,2263.0,2262.2,1.65219317]
[1770167357513,0.864,2263.2,2262.2,1.65219317]
[1770167358016,1.52287829,2263.1,2262.2,0.00445797]
[1770167358918,1.74412829,2263.1,2262.2,0.00445797]
[1770167360018,1.74412829,2263.1,2261.5,1.6477352]
[1770167360916,0.864,2263.2,2261.6,1.58181442]
[1770167361114,0.864,2263.2,2262.0,1.58181442]
[1770167361516,0.00541794,2263.6,2262.0,1.80316442]
[1770167361820,1.49906757,2263.3,2262.4,1.58181442]
[1770167362218,1.72030757,2263.3,2262.4,1.58181442]
[1770167362419,1.72030757,2263.3,2261.6,1.58181442]
[1770167363925,1.72030757,2263.3,2261.5,2.58489926]
[1770167363926,1.49163121,2263.6,2261.8,1.58181442]
[1770167364424,0.22121,2263.5,2261.8,1.58181442]
[1770167364624,0.00541794,2263.6,2262.0,1.58181442]
[1770167364821,1.49026868,2263.6,2262.0,1.58181442]
[1770167365322,0.00541794,2263.6,2262.0,1.58181442]
[1770167365521,1.48650457,2263.6,2262.2,1.58181442]
[1770167365721,1.48108663,2263.4,2262.2,1.58181442]
[1770167367120,0.22121,2263.5,2262.2,1.58181442]
[1770167369624,1.47850308,2263.4,2262.2,1.58181442]
[1770167369829,1.69972308,2263.4,2262.2,1.58181442]
[1770167371730,0.22122,2263.4,2262.2,1.58181442]
[1770167372031,1.68770198,2263.4,2262.2,1.58181442]
[1770167373734,1.46100555,2263.2,2262.2,1.58181442]
[1770167374429,0.22133,2262.4,2261.5,0.00337314]
[1770167374632,6.630259,2263.3,2261.5,0.00337314]
[1770167374633,1.48986208,2263.2,2262.2,1.58181442]
[1770167374833,1.70482717,2263.5,2262.2,2.58152612]
[1770167375035,1.70482717,2263.5,2262.1,2.57100948]
[1770167375036,1.92603717,2263.5,2262.1,0.02824659]
[1770167375630,1.92549341,2263.3,2261.8,0.02824659]
[1770167377028,0.22129,2262.8,2261.5,2.76782336]
[1770167377327,0.00541794,2263.6,2262.7,0.16309728]
[1770167377532,1.66891645,2263.6,2262.7,0.16309728]
[1770167378832,0.00541794,2263.6,2262.7,0.16309728]
[1770167379031,0.00541794,2263.6,2262.8,0.25483996]
[1770167380433,1.75549237,2265.6,2262.8,0.25483996]
[1770167380631,1.97651237,2265.5,2264.0,0.05664558]
[1770167381538,1.98098868,2265.5,2264.0,0.06111407]
[1770167381838,1.72712573,2265.1,2264.0,0.00446849]
[1770167382735,1.72548381,2266.3,2264.8,0.16943756]
[1770167383733,1.73051466,2266.3,2264.8,0.16943756]
[1770167384339,1.72387153,2266.3,2265.0,0.23429337]
[1770167386242,1.80521952,2266.3,2265.0,0.23429337]
[1770167387438,1.72387153,2266.3,2265.0,0.23429337]
[1770167387635,1.80521952,2266.3,2265.0,0.23429337]
[1770167387939,1.69660988,2266.1,2265.0,0.23429337]
[1770167388137,1.69660988,2265.9,2265.0,0.23429337]
[1770167388540,1.69660988,2265.5,2264.6,0.37837269]
[1770167389338,1.77795787,2265.5,2264.6,0.37837269]
[1770167389538,1.77795787,2265.5,2264.5,0.62719108]
[1770167389735,1.69660988,2265.5,2264.5,0.62719108]
[1770167391743,1.81484549,2265.9,2264.5,0.40608108]
[1770167391937,1.89619348,2265.9,2264.5,0.40608108]
[1770167392740,1.81484549,2265.6,2264.2,0.50251247]
[1770167393645,0.08134799,2265.4,2264.2,0.50251247]
[1770167393945,1.81484549,2265.3,2264.2,0.50251247]
[1770167394145,1.89619348,2265.3,2264.2,0.50251247]
[1770167394645,1.89619348,2265.2,2264.2,0.50251247]
[1770167394945,1.81484549,2265.2,2264.2,0.50251247]
[1770167396744,1.89619348,2265.2,2264.2,0.50251247]
[1770167397241,1.81484549,2265.2,2264.2,0.50251247]
[1770167397443,1.92825689,2264.9,2264.0,0.00446849]
[1770167397645,2.0679889,2264.9,2264.0,0.00446849]
[1770167397849,0.08134799,2264.8,2264.0,0.00446849]
[1770167398045,1.8469089,2265.6,2264.5,0.78826481]
[1770167399847,1.8469089,2268.3,2264.5,0.78826481]
[1770167400152,1.8469089,2267.4,2266.3,0.40557961]
[1770167400346,1.8469089,2267.4,2266.6,2.58152612]
[1770167400649,1.8469089,2268.2,2266.7,0.40557961]
[1770167400844,1.8469089,2268.2,2267.0,2.58152612]
[1770167401043,1.85090025,2268.2,2267.1,0.4262566]
[1770167401246,1.85090025,2268.2,2266.8,0.4262566]
[1770167401445,1.8469089,2267.8,2266.7,0.00341641]
[1770167401651,1.8469089,2267.6,2266.7,0.00341641]
[1770167402049,0.07682399,2267.5,2266.7,0.00341641]
[1770167402451,0.07682399,2267.4,2266.7,0.00341641]
[1770167402652,1.92373289,2267.5,2266.7,0.00341641]
[1770167402854,1.8469089,2267.5,2266.7,0.00341641]
[1770167403153,0.07682399,2267.4,2266.7,0.00341641]
[1770167403449,1.8469089,2267.5,2266.7,0.00341641]
[1770167404055,0.07682399,2267.3,2266.7,0.00341641]
[1770167404248,1.8469089,2267.4,2266.7,0.00341641]
[1770167404453,1.8469089,2267.1,2266.2,0.73517839]
[1770167405452,1.8469089,2267.1,2266.2,0.00518698]
[1770167405959,1.92373289,2267.1,2266.2,0.00518698]
[1770167406159,1.92373289,2267.1,2266.2,0.57550045]
[1770167406452,1.92373289,2267.1,2266.2,0.00518698]
[1770167407253,1.8469089,2266.8,2266.2,0.00518698]
[1770167407757,1.8469089,2266.8,2265.6,0.59183009]
[1770167408552,1.8469089,2266.8,2265.7,0.61670237]
[1770167408750,1.8469089,2266.8,2265.7,0.62032629]
[1770167409160,1.8469089,2266.8,2265.7,0.00362392]
[1770167409355,1.92373289,2266.6,2265.7,0.00362392]
[1770167409554,1.85193689,2266.6,2265.7,0.65362375]
[1770167409759,0.00502799,2266.6,2265.7,0.65362375]
[1770167410853,1.85193689,2266.6,2265.7,0.65362375]
[1770167411156,1.8469089,2266.2,2265.1,0.70210944]
[1770167411559,1.92373289,2266.1,2265.1,0.70210944]
[1770167411760,1.8469089,2266.1,2265.2,1.86892788]
[1770167412060,1.92373289,2266.0,2265.2,1.16681844]
[1770167412262,1.8469089,2266.0,2265.2,1.17172049]
[1770167412460,1.92373289,2266.0,2265.2,1.17172049]
[1770167413761,1.92373289,2265.9,2265.2,1.17172049]
[1770167414064,1.8469089,2265.9,2265.2,1.17172049]
[1770167414259,0.07682399,2265.8,2265.2,1.17172049]
[1770167414561,1.8469089,2266.5,2265.3,0.77542284]